bitfinex-derivatives/quotes_ETHF0:USTF0_20250214
["timestamp","ask_amount","ask_price","bid_price","bid_amount"]
[1739568163153,0.79318747,2721.4,2721.3,2.58951704]
[1739568164659,0.79318747,2721.4,2721.3,0.00551704]
[1739568164960,0.79318747,2721.4,2721.3,2.58951704]
[1739568165758,4.00098747,2721.4,2721.3,0.00551704]
[1739568166546,0.73477,2721.0,2720.9,3.1676]
[1739568167361,0.79329747,2721.0,2720.9,3.1676]
[1739568167959,0.79329747,2721.0,2720.9,0.5836]
[1739568168151,0.05852747,2721.0,2720.8,2.584]
[1739568168354,0.79331747,2720.9,2720.8,2.584]
[1739568169566,0.79331747,2720.9,2720.7,0.00551704]
[1739568169567,0.05852747,2720.9,2720.7,0.00551704]
[1739568169861,3.94262,2720.8,2720.7,0.00551704]
[1739568170252,0.73482,2720.8,2720.7,0.00551704]
[1739568170455,0.79334747,2720.8,2720.7,0.00551704]
[1739568171061,41.59334747,2720.8,2720.7,0.00551704]
[1739568174162,44.80114747,2720.8,2720.7,0.00551704]
[1739568178972,41.59334747,2720.8,2720.7,0.00551704]
[1739568179173,44.80114747,2720.8,2720.7,0.00551704]
[1739568181778,0.05852747,2720.8,2720.7,6.53216704]
[1739568181975,0.79334747,2720.8,2720.7,3.15431704]
[1739568182175,44.80114747,2720.8,2720.7,0.00551704]
[1739568187581,44.80468634,2720.8,2720.7,0.00551704]
[1739568189275,44.06986634,2720.8,2720.3,1.1558]
[1739568189580,0.73498,2720.2,2720.1,0.5648]
[1739568190383,0.73498,2720.2,2720.1,1.29981]
[1739568190678,0.05852747,2720.2,2720.1,1.66781]
[1739568190879,0.00353887,2720.8,2720.1,0.9328]
[1739568191072,0.73492,2720.5,2720.4,0.7349]
[1739568191279,1.84062887,2720.8,2720.2,6.08431617]
[1739568191483,42.64062887,2720.8,2720.2,6.08431617]
[1739568191687,40.80353887,2720.8,2720.2,6.08431617]
[1739568191881,0.73496,2720.3,2720.2,3.61148617]
[1739568192077,0.73504,2720.0,2719.9,0.00551704]
[1739568196587,0.73504,2720.0,2719.9,0.74057704]
[1739568196787,0.73504,2720.0,2719.9,0.00551704]
[1739568196987,0.73504,2720.0,2719.9,0.74057704]
[1739568197284,0.73504,2720.0,2719.9,0.00551704]
[1739568197791,0.73504,2720.0,2719.9,0.74057704]
[1739568197992,0.73504,2720.0,2719.9,0.00551704]
[1739568198197,0.73504,2720.0,2719.9,0.74057704]
[1739568198387,0.73504,2720.0,2719.9,0.00551704]
[1739568199382,0.73504,2720.0,2719.9,0.74057704]
[1739568199787,0.73498,2720.3,2720.2,0.73494]
[1739568200085,3.2078,2720.6,2720.0,2.583]
[1739568200286,0.73501,2720.2,2720.1,0.73499]
[1739568200587,0.73501,2720.1,2720.0,2.583]
[1739568200789,0.73504,2720.0,2719.9,2.58851704]
[1739568201487,0.73504,2720.0,2719.9,0.00551704]
[1739568201692,3.94284,2720.0,2719.9,0.00551704]
[1739568202887,0.73504,2720.0,2719.9,0.00551704]
[1739568212710,0.73504,2720.0,2719.9,0.74057704]
[1739568212909,0.73504,2720.0,2719.9,0.00551704]
[1739568214607,3.61155617,2720.0,2719.9,0.00551704]
[1739568215304,0.73517,2719.5,2719.4,1.1601]
[1739568216006,3.2078,2719.8,2719.4,2.9981]
[1739568216213,3.9429,2719.8,2719.7,0.73512]
[1739568217111,3.95948452,2719.8,2719.7,0.73512]
[1739568217512,0.01658452,2719.8,2719.7,0.73512]
[1739568218013,0.75996678,2719.8,2719.7,0.73512]
[1739568218708,0.76825904,2719.8,2719.7,0.73512]
[1739568219312,0.7765513,2719.8,2719.7,0.73512]
[1739568223019,0.0414613,2719.8,2719.7,0.73512]
[1739568223220,0.7765513,2719.8,2719.7,0.73512]
[1739568223723,0.78494692,2719.8,2719.7,0.73512]
[1739568224321,0.79334254,2719.8,2719.7,0.73512]
[1739568226625,0.73512,2719.7,2719.6,3.31714]
[1739568227012,0.73517,2719.6,2719.5,0.73514]
[1739568227327,0.7351,2719.8,2719.7,0.67686746]
[1739568231228,0.73515,2719.7,2719.6,0.73511]
[1739568232531,0.73517,2719.6,2719.5,0.73516]
[1739568235124,0.73517,2719.6,2719.5,1.10316]
[1739568235330,0.73517,2719.6,2719.5,0.73516]
[1739568236338,1.83784,2719.7,2719.4,0.5713]
[1739568236537,0.73517,2719.5,2719.4,3.88747]
[1739568237336,0.5502,2719.7,2719.4,3.1523]
[1739568237536,0.00551704,2719.9,2719.4,3.1523]
[1739568237739,0.74062704,2719.9,2719.8,0.73509]
[1739568238432,0.73509,2719.8,2719.7,1.28569]
[1739568240540,1.84321704,2719.9,2719.4,8.1981]
[1739568240836,0.73517,2719.6,2719.5,1.30753]
[1739568241240,0.00551704,2719.9,2719.5,2.41028]
[1739568241434,0.73512,2719.8,2719.7,0.73509]
[1739568241836,0.74060704,2719.9,2719.8,0.73509]
[1739568242445,0.73513,2719.8,2719.7,0.73509]
[1739568244237,0.73513,2719.8,2719.5,2.41028]
[1739568244238,0.73515,2719.6,2719.5,0.73515]
[1739568245144,0.73513,2719.8,2719.7,0.73509]
[1739568245641,0.74060704,2719.9,2719.8,0.73509]
[1739568246142,0.00551704,2719.9,2719.8,3.31509]
[1739568246338,0.5763,2720.6,2719.8,5.7878]
[1739568246539,0.552,2720.7,2720.6,0.73488]
[1739568246843,40.8,2720.7,2720.6,0.73488]
[1739568247544,41.53485,2720.7,2720.6,0.73488]
[1739568247939,0.73488,2720.6,2720.5,0.73489]
[1739568248240,0.73498,2720.2,2720.1,6.52279]
[1739568248840,0.73498,2720.2,2720.1,3.2078]
[1739568249639,1.1533,2720.6,2720.2,0.73498]
[1739568249640,0.73497,2720.3,2720.2,0.73498]
[1739568249843,1.1533,2720.6,2720.1,3.2078]
[1739568249844,0.5829,2720.6,2720.1,3.2078]
[1739568250039,0.5829,2720.6,2720.3,0.73493]
[1739568250540,0.73493,2720.4,2720.3,1.27743]
[1739568250740,0.73491,2720.5,2720.3,0.5425]
[1739568250949,0.73498,2720.2,2720.1,3.2078]
[1739568251850,2.42014,2720.6,2720.1,3.94281]
[1739568252149,0.5829,2720.6,2720.1,3.2078]
[1739568252346,3.21133887,2720.8,2720.4,2.87651617]
[1739568252552,0.00353887,2720.8,2720.7,0.73485]
[1739568252742,0.73835887,2720.8,2720.7,0.73485]
[1739568253047,41.53835887,2720.8,2720.7,0.73485]
[1739568253348,0.73486,2720.7,2720.5,4.2118]
[1739568253547,0.73486,2720.7,2720.6,0.73488]
[1739568253745,40.80353887,2720.8,2720.5,1.6318]
[1739568253948,0.73494,2720.4,2720.3,2.58]
[1739568255350,0.73494,2720.4,2719.8,2.87651617]
[1739568255351,4.354,2720.6,2719.8,1.133]
[1739568255651,0.73506,2719.9,2719.8,3.713]
[1739568255843,0.73506,2719.9,2719.8,0.5414]
[1739568256243,5.62376,2720.3,2719.8,0.5414]
[1739568256244,3.2078,2720.3,2719.8,0.5414]
[1739568256446,0.73501,2720.2,2720.1,0.73501]
[1739568256944,0.73499,2720.2,2720.1,0.735]
[1739568257744,4.354,2720.5,2719.9,0.5916]
[1739568257953,0.73497,2720.3,2720.2,0.73497]
[1739568258250,0.73499,2720.2,2720.1,0.73499]
[1739568258449,0.73494,2720.4,2720.3,0.73494]
[1739568258746,3.2078,2720.5,2720.2,2.579]
[1739568258949,41.36163887,2720.8,2720.3,1.1516]
[1739568258950,40.80353887,2720.8,2720.3,1.1516]
[1739568259152,41.53835887,2720.8,2720.7,0.73485]
[1739568260552,40.80353887,2720.8,2720.6,2.579]
[1739568260751,0.73485,2720.7,2720.6,3.31386]
[1739568261455,40.80353887,2720.8,2720.6,2.579]
[1739568261655,40.80353887,2720.8,2720.7,0.73485]
[1739568261656,41.53835887,2720.8,2720.7,0.73485]
[1739568262349,40.8,2720.8,2720.6,2.579]
[1739568262555,0.73485,2720.7,2720.6,3.31385]
[1739568263657,40.8,2720.8,2720.7,0.73485]
[1739568264258,0.00551704,2720.9,2720.6,2.579]
[1739568264555,0.00551704,2720.9,2720.8,0.73482]
[1739568264755,0.00551704,2720.9,2720.8,0.73128113]
[1739568265158,0.00551704,2720.9,2720.8,1.83118113]
[1739568265656,40.8,2721.3,2721.2,0.73471]
[1739568265657,41.5347,2721.3,2721.2,0.73471]
[1739568265960,40.8,2721.3,2721.2,0.73471]
[1739568266363,5.04418,2721.9,2721.1,7.6226]
[1739568266558,0.73465,2721.5,2721.4,0.73462]
[1739568266753,41.53465,2721.5,2721.4,0.73462]
[1739568267057,40.8,2721.5,2721.4,0.73462]
[1739568267760,40.8,2721.5,2721.4,1.31812]
[1739568268069,40.8,2721.5,2721.4,4.52592]
[1739568268248,0.00551704,2721.8,2721.4,6.66781617]
[1739568268452,0.74008704,2721.8,2721.7,0.73458]
[1739568268651,0.7346,2721.7,2721.6,0.73458]
[1739568268861,0.00551704,2721.8,2721.5,2.578]
[1739568269060,0.73461,2721.6,2721.5,3.31261]
[1739568270262,41.53461,2721.6,2721.5,3.31261]
[1739568270763,40.8,2721.6,2721.5,3.31261]
[1739568271262,0.00551704,2721.8,2721.7,0.73458]
[1739568272762,40.80551704,2721.8,2721.7,0.73458]
[1739568273265,40.80551704,2721.8,2721.7,3.2078]
[1739568274563,0.00551704,2721.8,2721.7,3.2078]
[1739568275468,0.00551704,2721.8,2721.7,6.08431617]
[1739568278768,0.00551704,2721.8,2721.7,6.81888617]
[1739568281269,0.73424,2723.0,2722.9,0.73425]
[1739568281764,0.7342,2723.1,2723.0,0.73422]
[1739568282062,0.73419,2723.2,2723.1,0.73418]
[1739568282264,1.91995,2723.3,2723.2,0.73417]
[1739568282464,1.91995,2723.3,2723.2,3.31017]
[1739568282665,42.71995,2723.3,2723.2,3.31017]
[1739568282967,40.8,2723.3,2723.2,3.31017]
[1739568283164,40.8,2723.3,2723.2,6.18668617]
[1739568284166,3.2078,2724.0,2723.2,11.45251617]
[1739568284367,3.94176,2724.0,2723.6,2.87651617]
[1739568284571,3.94176,2724.0,2723.7,3.7821]
[1739568284765,40.8,2723.9,2723.8,0.73401]
[1739568284970,1.1404,2724.4,2723.7,4.1493]
[1739568285169,0.7339,2724.3,2724.1,0.73392]
[1739568285365,0.7339,2724.3,2724.2,2.576]
[1739568285960,0.73396,2724.0,2723.9,0.00550681]
[1739568286569,2.97507,2724.4,2723.9,0.00550681]
[1739568286773,0.73396,2724.1,2723.9,0.73948681]
[1739568287070,0.73396,2724.0,2723.9,2.58050681]
[1739568287470,0.73396,2724.0,2723.9,0.00550681]
[1739568292570,41.53396,2724.0,2723.9,0.00550681]
[1739568293776,41.53396,2724.0,2723.9,0.73948681]
[1739568294172,40.8,2724.0,2723.9,0.73948681]
[1739568294565,40.8,2724.0,2723.9,0.00550681]
[1739568294771,41.53396,2724.0,2723.9,0.00550681]
[1739568295068,0.73396,2724.0,2723.9,0.00550681]
[1739568295269,0.73396,2724.0,2723.9,2.57950681]
[1739568295468,41.53396,2724.0,2723.9,2.57950681]
[1739568296473,1.83436,2724.8,2723.9,8.66382298]
[1739568296776,3.2078,2724.7,2724.0,1.7522]
[1739568297091,0.73393,2724.1,2724.0,1.1533]
[1739568297266,0.73393,2724.1,2724.0,3.7273]
[1739568297580,41.3679,2724.6,2724.1,0.73392]
[1739568297981,41.3679,2724.6,2724.0,3.88975]
[1739568298183,0.73392,2724.2,2724.1,0.73393]
[1739568298383,41.3679,2724.6,2724.0,3.1558]
[1739568298588,0.73389,2724.3,2724.0,3.1558]
[1739568298881,0.73389,2724.3,2724.1,0.73393]
[1739568299289,0.73389,2724.3,2724.0,3.7386]
[1739568299593,0.73389,2724.3,2724.2,0.7339]
[1739568299877,3.2078,2725.0,2724.2,6.08431617]
[1739568300083,3.2078,2725.0,2724.5,2.87651617]
[1739568300292,0.73375,2724.8,2724.7,0.73375]
[1739568300584,40.8,2724.8,2724.7,0.73375]
[1739568301278,40.8,2724.8,2724.6,4.50948]
[1739568301585,41.53375,2724.8,2724.7,0.73377]
[1739568301784,0.73377,2724.7,2724.6,4.50948]
[1739568302083,0.73377,2724.7,2723.1,3.85261397]
[1739568302084,5.04223,2724.7,2724.2,3.2078]
[1739568302284,0.73385,2724.4,2724.3,2.573]
[1739568302476,0.73396,2724.0,2723.9,0.00550681]
[1739568303183,41.53396,2724.0,2723.9,0.00550681]
[1739568303885,40.8,2724.0,2723.9,0.00550681]
[1739568304283,3.2078,2724.4,2723.9,2.88202298]
[1739568304584,3.2078,2724.9,2724.2,4.71124617]
[1739568304791,0.73375,2724.8,2724.7,0.73376]
[1739568304991,0.73375,2724.8,2724.7,3.30676]
[1739568305488,0.73375,2724.8,2724.7,2.573]
[1739568307691,1.83443,2724.7,2724.1,3.2078]
[1739568307892,0.73388,2724.3,2724.2,2.573]
[1739568308296,3.2078,2724.8,2724.2,2.573]
[1739568308595,0.73384,2724.5,2724.4,0.73384]
[1739568309093,0.73384,2724.5,2724.4,1.29144]
[1739568309283,1.83447,2724.7,2724.1,2.573]
[1739568309491,0.73393,2724.2,2724.1,3.1306]
[1739568311794,0.73393,2724.2,2724.1,2.573]
[1739568312789,0.73393,2724.2,2724.1,3.30693]
[1739568312991,0.73393,2724.2,2724.1,2.573]
[1739568313196,0.73393,2724.1,2724.0,3.1386]
[1739568313495,0.73396,2724.0,2723.9,0.00550681]
[1739568314088,41.53396,2724.0,2723.9,0.00550681]
[1739568315499,40.8,2724.0,2723.4,0.5887]
[1739568315698,0.73416,2723.3,2723.2,3.30615]
[1739568315995,0.73416,2723.3,2723.2,2.572]
[1739568316795,1.1811,2723.9,2723.2,4.40738]
[1739568317001,0.00547271,2723.5,2723.4,3.2078]
[1739568317195,0.00547271,2723.5,2723.4,7.52605125]
[1739568317587,0.73405,2723.8,2723.7,0.73402]
[1739568317785,0.73405,2723.8,2723.7,3.30602]
[1739568318498,0.734,2723.9,2723.8,0.73401]
[1739568318801,0.73401,2723.8,2723.7,3.30603]
[1739568318995,0.73401,2723.8,2723.7,2.572]
[1739568319292,3.2078,2724.0,2723.1,4.87514599]
[1739568319498,0.73412,2723.5,2723.4,3.30611]
[1739568320093,1.1355,2723.7,2723.4,2.572]
[1739568320296,0.73408,2723.6,2723.5,0.73407]
[1739568320700,0.73408,2723.6,2723.5,1.30037]
[1739568321503,0.73408,2723.6,2723.5,0.5663]
[1739568322110,0.73408,2723.6,2723.5,1.30039]
[1739568322498,0.73409,2723.5,2723.4,3.30611]
[1739568323103,0.73409,2723.5,2723.4,2.572]
[1739568323500,0.73409,2723.5,2723.4,3.30612]
[1739568324195,1.1355,2723.7,2723.4,3.30612]
[1739568324196,0.73409,2723.6,2723.5,0.73407]
[1739568324397,1.1355,2723.7,2723.4,2.572]
[1739568324592,0.73409,2723.6,2723.5,0.73407]
[1739568325196,0.73409,2723.5,2723.4,3.3061]
[1739568327902,1.83499,2723.9,2723.4,2.572]
[1739568328199,0.73407,2723.7,2723.6,0.73404]
[1739568328409,0.73399,2724.0,2723.9,0.73398]
[1739568329002,40.8,2724.2,2723.8,2.572]
[1739568329305,0.73396,2724.1,2724.0,0.73393]
[1739568330503,0.73396,2724.0,2723.9,1.33826]
[1739568330699,0.73396,2724.1,2724.0,0.73393]
[1739568332004,40.8,2724.2,2723.9,0.6043]
[1739568332206,40.8,2724.2,2724.1,0.73393]
[1739568332401,0.73386,2724.4,2724.3,0.73388]
[1739568332902,3.2078,2724.5,2724.4,0.73385]
[1739568333101,0.73385,2724.4,2724.3,3.59474048]
[1739568333301,3.94164,2724.5,2724.4,0.73385]
[1739568333999,44.74164,2724.5,2724.4,0.73385]
[1739568334205,44.0078,2724.5,2724.4,0.73385]
[1739568334407,44.74162,2724.5,2724.4,0.73385]
[1739568334905,44.74162,2724.5,2724.4,1.10105]
[1739568335104,44.0078,2724.5,2724.4,1.10105]
[1739568335309,3.2078,2725.0,2724.4,0.3672]
[1739568335612,0.73378,2724.8,2724.7,0.73375]
[1739568335912,41.53378,2724.8,2724.7,0.73375]
[1739568336106,0.5638,2725.1,2724.6,10.47515048]
[1739568336406,0.5638,2725.1,2725.0,0.73369]
[1739568336612,0.5638,2725.1,2725.0,3.30469]
[1739568336801,3.7931,2725.3,2725.0,2.571]
[1739568337118,0.73366,2725.1,2725.0,3.30467]
[1739568337312,0.5935,2725.4,2725.0,2.571]
[1739568337603,3.2078,2725.8,2725.2,6.06868048]
[1739568337803,0.73355,2725.6,2725.5,0.73354]
[1739568338413,0.73355,2725.6,2725.4,2.571]
[1739568338612,0.73355,2725.6,2725.5,0.7299954]
[1739568338912,3.2078,2725.8,2725.4,2.571]
[1739568339212,3.2078,2725.8,2725.7,0.7335]
[1739568339400,0.5817,2726.3,2725.6,3.2078]
[1739568339605,0.73341,2726.1,2726.0,0.73342]
[1739568340003,0.5817,2726.3,2726.0,0.73342]
[1739568340199,3.2078,2726.2,2725.8,3.18600681]
[1739568340604,0.73345,2725.9,2725.8,3.18600681]
[1739568340807,0.73342,2726.0,2725.9,0.73344]
[1739568341011,0.73342,2726.0,2725.8,3.18600681]
[1739568341215,3.2078,2726.2,2725.8,3.91946681]
[1739568341409,0.73344,2726.0,2725.8,3.91946681]
[1739568341713,3.2078,2726.2,2725.8,3.91946681]
[1739568341914,0.73345,2725.9,2725.8,3.18600681]
[1739568342406,0.73345,2725.9,2725.8,2.57650681]
[1739568342799,41.53345,2725.9,2725.8,2.57650681]
[1739568343203,41.53345,2725.9,2725.8,0.00550681]
[1739568343204,44.74125,2725.9,2725.8,0.00550681]
[1739568343912,0.73363,2725.2,2724.9,3.2078]
[1739568344214,1.83389,2725.5,2724.9,3.30372]
[1739568344708,0.73369,2725.0,2724.9,3.30372]
[1739568345015,0.00550681,2725.2,2724.9,2.57]
[1739568345415,0.00550681,2725.2,2724.7,1.76820681]
[1739568345416,40.8,2725.1,2724.7,2.50197681]
[1739568345714,0.73374,2724.8,2724.7,0.00550681]
[1739568347813,1.34404,2724.8,2724.7,0.00550681]
[1739568348314,42.14404,2724.8,2724.7,0.00550681]
[1739568349113,0.73374,2724.8,2724.7,0.00550681]
[1739568349413,3.2078,2725.0,2724.7,0.73925681]
[1739568349612,0.73374,2724.8,2724.7,0.73927681]
[1739568349811,0.73374,2724.8,2724.7,2.57550681]
[1739568350816,0.73374,2724.8,2724.7,3.30927681]
[1739568351214,0.73374,2724.8,2724.7,2.57550681]
[1739568351415,0.73374,2724.8,2724.7,3.30927681]
[1739568351925,0.73372,2724.9,2724.8,0.73372]
[1739568352118,3.2078,2725.0,2724.8,0.5842]
[1739568352311,3.94151,2725.0,2724.9,0.73372]
[1739568352516,3.94151,2725.0,2724.8,1.31792]
[1739568352517,0.73372,2724.9,2724.8,1.31792]
[1739568352912,3.2078,2725.0,2724.8,1.31792]
[1739568353212,0.00550681,2725.2,2724.8,0.5842]
[1739568353410,0.73372,2724.9,2724.8,1.31792]
[1739568354119,42.63962681,2725.2,2724.7,0.00550681]
[1739568354307,0.73374,2724.8,2724.7,0.00550681]
[1739568354812,3.2078,2725.0,2724.7,0.00550681]
[1739568355014,0.73372,2724.9,2724.8,0.73374]
[1739568355214,40.80550681,2725.2,2724.7,0.58450681]
[1739568355514,0.7337,2725.0,2724.9,0.7337]
[1739568355711,40.80550681,2725.2,2724.9,3.1519]
[1739568355910,0.00550681,2725.2,2725.1,3.94146]
[1739568356105,3.2078,2726.1,2725.5,1.83389]
[1739568356106,3.94121,2726.1,2725.5,1.83389]
[1739568356316,40.8,2726.0,2725.6,3.7309]
[1739568356517,0.7335,2725.7,2725.6,3.7309]
[1739568357716,0.7335,2725.7,2725.6,3.1519]
[1739568357922,0.7335,2725.7,2725.6,2.57]
[1739568359519,3.2078,2725.8,2725.1,3.2078]
[1739568359713,5.04191,2725.2,2724.7,0.00550681]
[1739568359916,3.2078,2725.2,2724.7,0.00550681]
[1739568360116,0.73369,2725.0,2724.9,0.73371]
[1739568360317,41.53369,2725.0,2724.9,0.73371]
[1739568360717,40.8,2725.0,2724.9,0.73371]
[1739568361224,4.3422,2725.6,2724.8,3.2078]
[1739568361425,0.73363,2725.3,2725.1,0.73364]
[1739568361620,0.73363,2725.3,2725.2,2.57]
[1739568361824,41.53363,2725.3,2725.2,2.57]
[1739568362623,40.8,2725.3,2725.2,2.57]
[1739568362824,40.8,2725.3,2725.2,3.30363]
[1739568363219,3.2078,2725.6,2725.5,0.73355]
[1739568363414,0.73348,2725.8,2725.3,4.77432797]
[1739568363616,3.2078,2726.0,2725.3,6.60831797]
[1739568363818,3.2078,2726.3,2725.5,5.04169]
[1739568364024,0.73345,2725.9,2725.8,0.73346]
[1739568364322,40.8,2725.9,2725.8,0.73346]
[1739568364921,40.8,2725.9,2725.8,3.94126]
[1739568365923,0.7334,2726.1,2725.8,3.94126]
[1739568365924,0.7334,2726.1,2726.0,0.73342]
[1739568366123,0.73337,2726.2,2726.1,0.73337]
[1739568366426,1.1629,2726.6,2726.3,0.73334]
[1739568366427,0.73332,2726.4,2726.3,0.73334]
[1739568366627,3.7905,2726.6,2726.0,2.569]
[1739568366927,0.73333,2726.4,2726.3,0.73333]
[1739568367140,40.8,2726.5,2726.4,0.73331]
[1739568367316,3.2078,2727.0,2726.4,5.7768]
[1739568367522,0.73308,2727.3,2726.9,3.58022797]
[1739568367716,3.2078,2727.6,2727.2,0.73308]
[1739568367923,0.73305,2727.4,2727.2,0.73308]
[1739568368124,3.2078,2727.6,2727.1,3.8044]
[1739568368326,3.2078,2727.6,2727.4,0.73303]
[1739568368623,3.2078,2727.6,2727.5,2.569]
[1739568368624,3.94079,2727.6,2727.5,2.569]
[1739568369226,3.2078,2728.2,2727.5,6.14922797]
[1739568369432,0.7329,2728.0,2727.6,0.73299]
[1739568369730,0.73296,2727.8,2727.6,0.00550681]
[1739568370125,3.2078,2727.9,2727.7,2.568]
[1739568370326,0.73295,2727.8,2727.7,2.568]
[1739568370629,0.73286,2728.1,2727.8,0.73294]
[1739568370832,0.73287,2728.1,2727.7,3.30095]
[1739568371221,0.73288,2728.0,2727.7,3.30095]
[1739568371417,3.2078,2728.3,2727.7,2.568]
[1739568371418,0.73291,2727.9,2727.7,2.568]
[1739568371622,3.2078,2728.3,2727.7,2.568]
[1739568371919,3.2078,2728.3,2727.7,5.7758]
[1739568372129,3.2078,2728.3,2728.1,0.73284]
[1739568372324,3.2078,2728.3,2728.2,2.568]
[1739568372525,3.9406,2728.3,2728.2,2.568]
[1739568372727,41.5328,2728.3,2728.2,2.568]
[1739568373929,41.5328,2728.3,2727.9,0.5838]
[1739568373930,40.8,2728.3,2727.9,0.5838]
[1739568374125,3.2078,2728.2,2727.3,0.5859]
[1739568374335,0.73296,2727.7,2727.4,2.568]
[1739568374926,41.53296,2727.7,2727.4,2.568]
[1739568375326,41.53296,2727.7,2727.1,2.568]
[1739568375625,41.53296,2727.7,2727.1,2.567]
[1739568376130,41.53296,2727.7,2726.8,5.7748]
[1739568376131,0.73318,2726.9,2726.8,5.7748]
[1739568376628,3.2078,2727.4,2726.8,6.142]
[1739568376829,40.8,2727.3,2727.1,0.7331]
[1739568377025,40.8,2727.3,2727.2,3.3001]
[1739568377435,40.8,2727.3,2727.2,2.567]
[1739568377638,41.53307,2727.3,2727.2,2.567]
[1739568378429,40.8,2727.3,2727.2,2.567]
[1739568378931,41.53307,2727.3,2727.2,2.567]
[1739568379526,40.8,2727.3,2726.9,0.57010681]
[1739568379726,0.73315,2727.0,2726.9,2.57250681]
[1739568380635,3.94095,2727.0,2726.9,0.00550681]
[1739568381331,1.83295,2726.9,2726.1,3.2078]
[1739568381531,0.73334,2726.3,2726.2,2.567]
[1739568381725,5.04113,2726.4,2725.7,24.1398]
[1739568382038,0.73345,2725.9,2725.8,2.567]
[1739568382627,0.00550681,2726.1,2725.7,24.1398]
[1739568382933,0.73347,2725.8,2725.7,24.1398]
[1739568383233,0.73347,2725.8,2725.7,22.894]
[1739568383534,0.73347,2725.8,2725.7,20.327]
[1739568383725,0.73347,2725.8,2725.7,22.894]
[1739568384733,40.8,2726.0,2725.7,2.567]
[1739568385038,0.73347,2725.8,2725.7,2.567]
[1739568385422,0.7335,2725.7,2725.6,0.00550681]
[1739568387137,1.3213,2725.7,2725.6,0.00550681]
[1739568388828,0.5878,2725.7,2725.0,22.897]
[1739568389031,0.73366,2725.1,2725.0,22.897]
[1739568389830,0.73366,2725.1,2725.0,20.329]
[1739568390740,0.73372,2724.9,2724.8,3.15420681]
[1739568390928,0.73372,2724.9,2724.8,0.00550681]
[1739568391135,3.2078,2724.9,2724.3,3.30185]
[1739568391437,1.83426,2725.0,2724.4,3.2078]
[1739568391633,40.8,2724.9,2724.4,3.2078]
[1739568391940,0.73382,2724.5,2724.4,3.2078]
[1739568392232,40.8,2724.9,2724.5,0.7338]
[1739568392436,0.73382,2724.6,2724.4,3.94164]
[1739568392638,0.73381,2724.6,2724.5,0.73381]
[1739568392831,0.73382,2724.5,2724.4,3.2078]
[1739568393030,0.00550681,2724.7,2724.4,3.2078]
[1739568393432,0.73382,2724.5,2724.4,3.94164]
[1739568393632,0.73381,2724.6,2724.5,0.73382]
[1739568393840,0.00550681,2724.7,2724.4,5.7758]
[1739568394042,0.73382,2724.6,2724.5,0.73381]
[1739568394241,0.7338,2724.6,2724.5,0.7338]
[1739568394441,0.00550681,2724.7,2724.4,5.7758]
[1739568394642,0.73382,2724.5,2724.4,6.50963]
[1739568394845,0.73382,2724.5,2724.4,2.568]
[1739568395038,0.73385,2724.4,2724.3,0.5944]
[1739568395340,0.73385,2724.4,2724.3,3.1624]
[1739568396245,0.73385,2724.4,2724.3,3.89628]
[1739568396446,0.00550681,2724.7,2724.3,3.1624]
[1739568396648,0.73385,2724.4,2724.3,3.1624]
[1739568396946,0.73384,2724.5,2724.4,0.73383]
[1739568397250,0.73382,2724.6,2724.5,0.7338]
[1739568397434,0.00550681,2724.7,2724.6,0.7338]
[1739568397947,0.00550681,2724.7,2724.6,4.31402797]
[1739568398647,3.2078,2725.3,2724.8,1.83434]
[1739568398948,3.94141,2725.3,2725.2,0.73363]
[1739568399244,3.2078,2725.3,2724.9,9.35702797]
[1739568399546,0.73366,2725.2,2725.1,0.73365]
[1739568400043,0.73366,2725.2,2725.0,0.6085]
[1739568400346,0.00550681,2725.4,2725.0,0.6085]
[1739568400548,0.73366,2725.1,2725.0,1.34218]
[1739568400747,0.73366,2725.1,2725.0,0.6085]
[1739568401247,0.73366,2725.1,2725.0,1.34219]
[1739568401448,0.00550681,2725.4,2725.0,0.6085]
[1739568401750,0.73366,2725.1,2725.0,1.34218]
[1739568401940,0.73366,2725.1,2725.0,1.94498]
[1739568402546,0.73366,2725.1,2725.0,1.2113]
[1739568403845,3.2078,2725.3,2724.6,3.2078]
[1739568404046,0.7338,2724.6,2724.5,0.5734]
[1739568404247,0.7338,2724.6,2724.5,3.1414]
[1739568404661,0.73367,2725.1,2725.0,0.73368]
[1739568404840,0.73366,2725.1,2725.0,2.568]
[1739568405240,41.53366,2725.1,2725.0,2.568]
[1739568405449,0.00550681,2725.4,2725.0,2.568]
[1739568405650,0.00550681,2725.4,2725.1,0.5734]
[1739568405851,0.73363,2725.2,2725.1,1.30705]
[1739568406254,40.8,2725.3,2725.1,0.5734]
[1739568406651,40.8,2725.3,2725.2,0.73363]
[1739568406851,40.8,2725.3,2725.1,0.5734]
[1739568407153,0.73363,2725.2,2725.1,1.30705]
[1739568408152,41.53363,2725.3,2725.2,0.73363]
[1739568408459,40.8,2725.3,2725.2,0.73363]
[1739568408954,41.53361,2725.3,2725.2,0.73363]
[1739568409151,0.73363,2725.2,2725.1,1.30704]
[1739568409550,40.8,2725.3,2725.1,0.5734]
[1739568409750,41.53362,2725.3,2725.2,0.73363]
[1739568409951,0.73363,2725.2,2725.1,1.30705]
[1739568410347,41.53362,2725.3,2725.2,0.73363]
[1739568411458,0.73910681,2725.4,2725.3,0.73361]
[1739568411858,41.53910681,2725.4,2725.3,0.73361]
[1739568412455,0.73361,2725.3,2725.2,2.568]
[1739568412661,0.73361,2725.3,2725.2,3.30162]
[1739568413063,41.53911681,2725.4,2725.3,0.73361]